[Event "Titled Tuesday Blitz June 27 Late 2023"]
[White "Mahdavi, Reza"]
[Black "Janaszak, Dawid"]
[WhiteFideId "12595926"]
[BlackFideId "1119206"]
[WhiteElo "2744"]
[BlackElo "2586"]
[Result "0-1"]
[Round "10"]
[TimeControl "180+2"]
[Date "2023.06.27"]
[WhiteClock "0:01:13"]
[BlackClock "0:00:27"]
[Board "34"]

1. e4 {[%clk 0:03:00]}  c5 {[%clk 0:03:00]} 2. Nf3 {[%clk 0:03:01]}  Nc6 {[%clk 0:03:00]} 3. Bb5 {[%clk 0:03:02]}  e5 {[%clk 0:03:00]} 4. O-O {[%clk 0:02:59]}  Nge7 {[%clk 0:03:00]} 5. c3 {[%clk 0:02:57]}  g6 {[%clk 0:03:00]} 6. d4 {[%clk 0:02:56]}  cxd4 {[%clk 0:03:01]} 7. cxd4 {[%clk 0:02:57]}  exd4 {[%clk 0:03:02]} 8. Bf4 {[%clk 0:02:56]}  Bg7 {[%clk 0:03:02]} 9. Bd6 {[%clk 0:02:57]}  O-O {[%clk 0:03:02]} 10. Na3 {[%clk 0:02:34]}  a6 {[%clk 0:03:02]} 11. Bc4 {[%clk 0:02:32]}  b5 {[%clk 0:03:02]} 12. Bb3 {[%clk 0:02:33]}  Bb7 {[%clk 0:02:59]} 13. Nc2 {[%clk 0:02:33]}  Na5 {[%clk 0:02:54]} 14. Ncxd4 {[%clk 0:02:30]}  Nxb3 {[%clk 0:02:51]} 15. Nxb3 {[%clk 0:02:31]}  Re8 {[%clk 0:02:27]} 16. Nc5 {[%clk 0:02:27]}  Qb6 {[%clk 0:02:14]} 17. Rc1 {[%clk 0:01:57]}  Bc6 {[%clk 0:02:13]} 18. Qd2 {[%clk 0:01:55]}  Nc8 {[%clk 0:02:05]} 19. Bg3 {[%clk 0:01:54]}  d6 {[%clk 0:02:00]} 20. Bxd6 {[%clk 0:01:38]}  Rd8 {[%clk 0:01:52]} 21. e5 {[%clk 0:01:28]}  Bxf3 {[%clk 0:01:52]} 22. gxf3 {[%clk 0:01:29]}  Bxe5 {[%clk 0:01:34]} 23. Qd5 {[%clk 0:01:24]}  Nxd6 {[%clk 0:00:56]} 24. Qxe5 {[%clk 0:01:23]}  Nc4 {[%clk 0:00:57]} 25. Qg5 {[%clk 0:01:17]}  h6 {[%clk 0:00:52]} 26. Qe7 {[%clk 0:01:16]}  Re8 {[%clk 0:00:37]} 27. Qh4 {[%clk 0:01:16]}  Qxc5 {[%clk 0:00:35]} 28. b3 {[%clk 0:01:17]}  Ne5 {[%clk 0:00:29]} 29. Kg2 {[%clk 0:01:15]}  Qe7 {[%clk 0:00:28]} 30. Qxh6 {[%clk 0:01:14]}  Qf6 {[%clk 0:00:28]} 31. Qh3 {[%clk 0:01:13]}  Nd3 {[%clk 0:00:27]} 0-1


[Site "https://www.chess.com"]

[Event "Titled Tuesday Blitz June 27 Late 2023"]
[White "Makridis, Dimitrios"]
[Black "Bjelobrk, Igor"]
[WhiteFideId "25864475"]
[BlackFideId "4300726"]
[WhiteElo "2740"]
[BlackElo "2583"]
[Result "1-0"]
[Round "10"]
[TimeControl "180+2"]
[Date "2023.06.27"]
[WhiteClock "0:00:06"]
[BlackClock "0:00:00"]
[Board "35"]

1. d4 {[%clk 0:03:00]}  e6 {[%clk 0:02:58]} 2. e4 {[%clk 0:03:00]}  d5 {[%clk 0:02:57]} 3. Nc3 {[%clk 0:02:59]}  Bb4 {[%clk 0:02:55]} 4. e5 {[%clk 0:02:58]}  b6 {[%clk 0:02:55]} 5. a3 {[%clk 0:02:53]}  Bf8 {[%clk 0:02:54]} 6. Bb5+ {[%clk 0:02:51]}  Bd7 {[%clk 0:02:51]} 7. Bd3 {[%clk 0:02:41]}  c5 {[%clk 0:02:51]} 8. Nf3 {[%clk 0:02:32]}  Nc6 {[%clk 0:02:49]} 9. O-O {[%clk 0:02:02]}  Qb8 {[%clk 0:02:39]} 10. Re1 {[%clk 0:01:50]}  Nge7 {[%clk 0:02:18]} 11. Bg5 {[%clk 0:01:32]}  h6 {[%clk 0:02:06]} 12. Bh4 {[%clk 0:01:30]}  c4 {[%clk 0:02:00]} 13. Bf1 {[%clk 0:01:29]}  Nf5 {[%clk 0:01:58]} 14. Bg3 {[%clk 0:01:25]}  b5 {[%clk 0:01:54]} 15. Ne2 {[%clk 0:01:21]}  g5 {[%clk 0:01:51]} 16. c3 {[%clk 0:01:13]}  a5 {[%clk 0:01:49]} 17. h4 {[%clk 0:01:07]}  Be7 {[%clk 0:01:46]} 18. h5 {[%clk 0:01:01]}  b4 {[%clk 0:01:36]} 19. axb4 {[%clk 0:00:57]}  axb4 {[%clk 0:01:35]} 20. Nh2 {[%clk 0:00:54]}  Rxa1 {[%clk 0:01:24]} 21. Qxa1 {[%clk 0:00:51]}  Qa7 {[%clk 0:01:22]} 22. Qb1 {[%clk 0:00:47]}  Qb6 {[%clk 0:01:14]} 23. Qc1 {[%clk 0:00:25]}  bxc3 {[%clk 0:01:11]} 24. bxc3 {[%clk 0:00:26]}  Qb3 {[%clk 0:01:04]} 25. Ng4 {[%clk 0:00:26]}  Kd8 {[%clk 0:00:56]} 26. Qa1 {[%clk 0:00:17]}  Kc7 {[%clk 0:00:54]} 27. Rb1 {[%clk 0:00:17]}  Qa3 {[%clk 0:00:54]} 28. Qxa3 {[%clk 0:00:14]}  Bxa3 {[%clk 0:00:55]} 29. Nf6 {[%clk 0:00:13]}  Rb8 {[%clk 0:00:42]} 30. Rxb8 {[%clk 0:00:08]}  Nxb8 {[%clk 0:00:43]} 31. f4 {[%clk 0:00:08]}  Nxg3 {[%clk 0:00:25]} 32. Nxg3 {[%clk 0:00:09]}  Bc1 {[%clk 0:00:25]} 33. Ne2 {[%clk 0:00:08]}  Be3+ {[%clk 0:00:24]} 34. Kh2 {[%clk 0:00:08]}  gxf4 {[%clk 0:00:24]} 35. Ng4 {[%clk 0:00:08]}  Nc6 {[%clk 0:00:19]} 36. Kh3 {[%clk 0:00:05]}  Ne7 {[%clk 0:00:16]} 37. g3 {[%clk 0:00:05]}  Nf5 {[%clk 0:00:13]} 38. Nxf4 {[%clk 0:00:05]}  Bxf4 {[%clk 0:00:13]} 39. gxf4 {[%clk 0:00:06]}  Ba4 {[%clk 0:00:13]} 40. Be2 {[%clk 0:00:05]}  Bc2 {[%clk 0:00:13]} 41. Nf6 {[%clk 0:00:06]}  Bd3 {[%clk 0:00:12]} 42. Bg4 {[%clk 0:00:06]}  Ne3 {[%clk 0:00:11]} 43. Ng8 {[%clk 0:00:04]}  Bf5 {[%clk 0:00:10]} 44. Nxh6 {[%clk 0:00:03]}  Nxg4 {[%clk 0:00:02]} 45. Nxg4 {[%clk 0:00:04]}  Kd7 {[%clk 0:00:02]} 46. Kh4 {[%clk 0:00:04]}  Ke7 {[%clk 0:00:02]} 47. Nf6 {[%clk 0:00:05]}  Kf8 {[%clk 0:00:02]} 48. Kg5 {[%clk 0:00:06]}  Kg7 {[%clk 0:00:02]} 49. h6+ {[%clk 0:00:06]}  Kh8 {[%clk 0:00:03]} 50. Ne8 {[%clk 0:00:06]}  Bd3 {[%clk 0:00:03]} 51. Nd6 {[%clk 0:00:07]}  Kg8 {[%clk 0:00:03]} 52. Kf6 {[%clk 0:00:07]}  Kf8 {[%clk 0:00:00]} 53. Nxf7 {[%clk 0:00:06]} 1-0


[Site "https://www.chess.com"]

[Event "Titled Tuesday Blitz June 27 Late 2023"]
[White "Rosen, Eric"]
[Black "Vovk, Orest"]
[WhiteFideId "2032562"]
[BlackFideId "14113490"]
[WhiteElo "2683"]
[BlackElo "2535"]
[Result "1-0"]
[Round "10"]
[TimeControl "180+2"]
[Date "2023.06.27"]
[WhiteClock "0:00:50"]
[BlackClock "0:00:00"]
[Board "38"]

1. d4 {[%clk 0:03:00]}  h6 {[%clk 0:02:08]} 2. e4 {[%clk 0:02:59]}  g5 {[%clk 0:02:04]} 3. Ne2 {[%clk 0:02:59]}  Bg7 {[%clk 0:02:02]} 4. Ng3 {[%clk 0:03:00]}  c5 {[%clk 0:01:59]} 5. c3 {[%clk 0:02:44]}  cxd4 {[%clk 0:01:55]} 6. cxd4 {[%clk 0:02:43]}  Qb6 {[%clk 0:01:54]} 7. Be3 {[%clk 0:02:30]}  Nc6 {[%clk 0:01:44]} 8. Nf5 {[%clk 0:02:21]}  Bf6 {[%clk 0:01:22]} 9. e5 {[%clk 0:02:21]}  d5 {[%clk 0:01:13]} 10. Ng3 {[%clk 0:01:53]}  Qxb2 {[%clk 0:00:47]} 11. Nd2 {[%clk 0:01:53]}  Nxd4 {[%clk 0:00:13]} 12. Bxd4 {[%clk 0:01:40]}  Qxd4 {[%clk 0:00:14]} 13. exf6 {[%clk 0:01:40]}  Nxf6 {[%clk 0:00:14]} 14. Bb5+ {[%clk 0:01:38]}  Bd7 {[%clk 0:00:13]} 15. Bxd7+ {[%clk 0:01:37]}  Nxd7 {[%clk 0:00:14]} 16. O-O {[%clk 0:01:37]}  h5 {[%clk 0:00:12]} 17. Qc2 {[%clk 0:01:16]}  e6 {[%clk 0:00:07]} 18. Rfe1 {[%clk 0:01:10]}  Qf6 {[%clk 0:00:03]} 19. Rab1 {[%clk 0:01:01]}  b6 {[%clk 0:00:03]} 20. Qc6 {[%clk 0:00:57]}  Rd8 {[%clk 0:00:03]} 21. Qxd5 {[%clk 0:00:54]}  Kf8 {[%clk 0:00:01]} 22. Qd6+ {[%clk 0:00:50]}  Kg7 {[%clk 0:00:00]} 23. Nde4 {[%clk 0:00:50]} 1-0


[Site "https://www.chess.com"]

[Event "Titled Tuesday Blitz June 27 Late 2023"]
[White "Taranenko, Evgueniy"]
[Black "Goryachkina, Aleksandra"]
[WhiteFideId "14122138"]
[BlackFideId "4147103"]
[WhiteElo "2341"]
[BlackElo "2671"]
[Result "0-1"]
[Round "10"]
[TimeControl "180+2"]
[Date "2023.06.27"]
[WhiteClock "0:00:16"]
[BlackClock "0:00:04"]
[Board "40"]

1. e4 {[%clk 0:03:00]}  c6 {[%clk 0:03:00]} 2. d4 {[%clk 0:03:00]}  d5 {[%clk 0:03:00]} 3. e5 {[%clk 0:03:00]}  Bf5 {[%clk 0:02:59]} 4. Nc3 {[%clk 0:03:01]}  Qc7 {[%clk 0:02:51]} 5. Bf4 {[%clk 0:02:47]}  e6 {[%clk 0:02:48]} 6. g4 {[%clk 0:02:46]}  Bg6 {[%clk 0:02:48]} 7. Nge2 {[%clk 0:02:46]}  h5 {[%clk 0:02:43]} 8. Bg5 {[%clk 0:02:33]}  hxg4 {[%clk 0:02:40]} 9. Nf4 {[%clk 0:02:33]}  Bf5 {[%clk 0:02:40]} 10. Be2 {[%clk 0:02:27]}  Be7 {[%clk 0:02:34]} 11. Bxe7 {[%clk 0:02:26]}  Nxe7 {[%clk 0:02:34]} 12. Bxg4 {[%clk 0:02:27]}  Nd7 {[%clk 0:02:34]} 13. Qf3 {[%clk 0:02:17]}  O-O-O {[%clk 0:02:23]} 14. O-O-O {[%clk 0:02:16]}  Rh4 {[%clk 0:02:13]} 15. h3 {[%clk 0:02:16]}  Rdh8 {[%clk 0:02:11]} 16. Nfe2 {[%clk 0:02:07]}  Nb6 {[%clk 0:01:54]} 17. Ng3 {[%clk 0:02:04]}  g6 {[%clk 0:01:53]} 18. Bxf5 {[%clk 0:01:55]}  gxf5 {[%clk 0:01:50]} 19. b3 {[%clk 0:01:43]}  Ng6 {[%clk 0:01:50]} 20. Nge2 {[%clk 0:01:38]}  Qe7 {[%clk 0:01:50]} 21. Nb1 {[%clk 0:01:29]}  Qg5+ {[%clk 0:01:47]} 22. Kb2 {[%clk 0:01:24]}  Qh6 {[%clk 0:01:46]} 23. Qc3 {[%clk 0:01:15]}  Rxh3 {[%clk 0:01:39]} 24. Rxh3 {[%clk 0:01:13]}  Qxh3 {[%clk 0:01:39]} 25. Qc5 {[%clk 0:01:13]}  Qf3 {[%clk 0:01:25]} 26. Nec3 {[%clk 0:01:09]}  Rh2 {[%clk 0:01:02]} 27. Nb5 {[%clk 0:01:02]}  Nd7 {[%clk 0:00:25]} 28. Nxa7+ {[%clk 0:00:55]}  Kd8 {[%clk 0:00:23]} 29. Qa5+ {[%clk 0:00:42]}  Ke8 {[%clk 0:00:22]} 30. Nc8 {[%clk 0:00:36]}  Qxd1 {[%clk 0:00:15]} 31. Qb4 {[%clk 0:00:18]}  c5 {[%clk 0:00:07]} 32. Qxb7 {[%clk 0:00:18]}  Rxf2 {[%clk 0:00:04]} 33. Nd6+ {[%clk 0:00:17]}  Kf8 {[%clk 0:00:04]} 34. Qc8+ {[%clk 0:00:15]}  Kg7 {[%clk 0:00:03]} 35. Qxd7 {[%clk 0:00:15]}  Qxc2+ {[%clk 0:00:03]} 36. Ka3 {[%clk 0:00:16]}  Qxa2# {[%clk 0:00:04]} 0-1


[Site "https://www.chess.com"]

[Event "Titled Tuesday Blitz June 27 Late 2023"]
[White "Palencia Morales, Wilson Guillermo"]
[Black "Fisher_TheGalactic"]
[WhiteFideId "4401859"]
[WhiteElo "2561"]
[BlackElo "2683"]
[Result "1-0"]
[Round "10"]
[TimeControl "180+2"]
[Date "2023.06.27"]
[WhiteClock "0:00:32"]
[BlackClock "0:00:32"]
[Board "43"]

1. d4 {[%clk 0:02:51]}  d5 {[%clk 0:02:59]} 2. c4 {[%clk 0:02:51]}  e6 {[%clk 0:02:59]} 3. Nf3 {[%clk 0:02:48]}  Nf6 {[%clk 0:02:59]} 4. Nc3 {[%clk 0:02:47]}  Bb4 {[%clk 0:02:58]} 5. Bg5 {[%clk 0:02:47]}  c6 {[%clk 0:02:56]} 6. e3 {[%clk 0:02:39]}  h6 {[%clk 0:02:53]} 7. Bxf6 {[%clk 0:02:38]}  Qxf6 {[%clk 0:02:51]} 8. Qc2 {[%clk 0:02:39]}  Nd7 {[%clk 0:02:50]} 9. a3 {[%clk 0:02:35]}  Bd6 {[%clk 0:02:49]} 10. e4 {[%clk 0:02:32]}  dxe4 {[%clk 0:02:46]} 11. Nxe4 {[%clk 0:02:31]}  Qe7 {[%clk 0:02:46]} 12. Nxd6+ {[%clk 0:02:31]}  Qxd6 {[%clk 0:02:46]} 13. O-O-O {[%clk 0:02:28]}  Qe7 {[%clk 0:02:42]} 14. Bd3 {[%clk 0:02:26]}  b5 {[%clk 0:02:37]} 15. cxb5 {[%clk 0:02:25]}  cxb5 {[%clk 0:02:38]} 16. Bxb5 {[%clk 0:02:12]}  Bb7 {[%clk 0:02:38]} 17. Ne5 {[%clk 0:02:08]}  O-O {[%clk 0:02:28]} 18. Nxd7 {[%clk 0:02:07]}  a6 {[%clk 0:02:17]} 19. Ba4 {[%clk 0:02:03]}  Rac8 {[%clk 0:02:11]} 20. Nc5 {[%clk 0:02:03]}  e5 {[%clk 0:02:11]} 21. Rhe1 {[%clk 0:01:49]}  Qg5+ {[%clk 0:02:09]} 22. Qd2 {[%clk 0:01:29]}  Qxg2 {[%clk 0:02:01]} 23. Bc2 {[%clk 0:01:18]}  exd4 {[%clk 0:01:55]} 24. Nxb7 {[%clk 0:01:10]}  Qxb7 {[%clk 0:01:49]} 25. Kb1 {[%clk 0:01:10]}  Rfd8 {[%clk 0:01:36]} 26. Qd3 {[%clk 0:01:07]}  g6 {[%clk 0:01:33]} 27. Bb3 {[%clk 0:01:06]}  Kg7 {[%clk 0:01:30]} 28. Ka2 {[%clk 0:00:58]}  Rc6 {[%clk 0:01:29]} 29. Qf3 {[%clk 0:00:48]}  Qc7 {[%clk 0:01:20]} 30. Qg3 {[%clk 0:00:44]}  Qb7 {[%clk 0:00:47]} 31. Qe5+ {[%clk 0:00:41]}  Rf6 {[%clk 0:00:42]} 32. Rxd4 {[%clk 0:00:37]}  Rxd4 {[%clk 0:00:43]} 33. Qxd4 {[%clk 0:00:37]}  Qg2 {[%clk 0:00:32]} 34. Re7 {[%clk 0:00:32]} 1-0


[Site "https://www.chess.com"]

[Event "Titled Tuesday Blitz June 27 Late 2023"]
[White "Karttunen, Mika"]
[Black "Golubev, Mikhail"]
[WhiteFideId "502081"]
[BlackFideId "14100983"]
[WhiteElo "2635"]
[BlackElo "2553"]
[Result "0-1"]
[Round "10"]
[TimeControl "180+2"]
[Date "2023.06.27"]
[WhiteClock "0:00:08"]
[BlackClock "0:00:35"]
[Board "44"]

1. c4 {[%clk 0:03:00]}  g6 {[%clk 0:02:59]} 2. Nc3 {[%clk 0:02:59]}  Bg7 {[%clk 0:03:00]} 3. Nf3 {[%clk 0:02:58]}  d6 {[%clk 0:02:59]} 4. d4 {[%clk 0:02:53]}  Nf6 {[%clk 0:02:58]} 5. e4 {[%clk 0:02:39]}  O-O {[%clk 0:02:58]} 6. h3 {[%clk 0:02:39]}  e5 {[%clk 0:02:57]} 7. d5 {[%clk 0:02:39]}  Nh5 {[%clk 0:02:57]} 8. Be3 {[%clk 0:02:23]}  Qe8 {[%clk 0:02:53]} 9. Qd2 {[%clk 0:01:20]}  f5 {[%clk 0:02:49]} 10. exf5 {[%clk 0:01:19]}  gxf5 {[%clk 0:02:46]} 11. Bh6 {[%clk 0:01:15]}  e4 {[%clk 0:02:27]} 12. O-O-O {[%clk 0:00:26]}  exf3 {[%clk 0:02:09]} 13. gxf3 {[%clk 0:00:26]}  Bxh6 {[%clk 0:02:02]} 14. Qxh6 {[%clk 0:00:25]}  Qg6 {[%clk 0:02:00]} 15. Qd2 {[%clk 0:00:23]}  Kh8 {[%clk 0:01:45]} 16. Bd3 {[%clk 0:00:23]}  Qf6 {[%clk 0:01:40]} 17. Rhg1 {[%clk 0:00:22]}  Na6 {[%clk 0:01:33]} 18. Rg5 {[%clk 0:00:22]}  Ng7 {[%clk 0:01:24]} 19. Rdg1 {[%clk 0:00:22]}  Rf7 {[%clk 0:01:21]} 20. Ne2 {[%clk 0:00:16]}  Nc5 {[%clk 0:01:15]} 21. Bc2 {[%clk 0:00:16]}  f4 {[%clk 0:01:07]} 22. Nd4 {[%clk 0:00:15]}  Bxh3 {[%clk 0:01:03]} 23. b4 {[%clk 0:00:09]}  Nd7 {[%clk 0:01:03]} 24. Ne6 {[%clk 0:00:09]}  Nxe6 {[%clk 0:00:52]} 25. dxe6 {[%clk 0:00:09]}  Bxe6 {[%clk 0:00:52]} 26. Rh5 {[%clk 0:00:10]}  Ne5 {[%clk 0:00:48]} 27. Qc3 {[%clk 0:00:08]}  Rg8 {[%clk 0:00:38]} 28. Rgh1 {[%clk 0:00:08]}  Rgg7 {[%clk 0:00:38]} 29. c5 {[%clk 0:00:07]}  Nd7 {[%clk 0:00:36]} 30. Rxh7+ {[%clk 0:00:07]}  Rxh7 {[%clk 0:00:36]} 31. Rxh7+ {[%clk 0:00:07]}  Rxh7 {[%clk 0:00:35]} 32. Qxf6+ {[%clk 0:00:07]}  Nxf6 {[%clk 0:00:35]} 33. Bxh7 {[%clk 0:00:08]}  Kxh7 {[%clk 0:00:35]} 0-1


[Site "https://www.chess.com"]

[Event "Titled Tuesday Blitz June 27 Late 2023"]
[White "D`Arruda, Ricardo D."]
[Black "Piesik, Piotr"]
[WhiteFideId "100692"]
[BlackFideId "1136194"]
[WhiteElo "2551"]
[BlackElo "2626"]
[Result "0-1"]
[Round "10"]
[TimeControl "180+2"]
[Date "2023.06.27"]
[WhiteClock "0:00:17"]
[BlackClock "0:00:10"]
[Board "46"]

1. d4 {[%clk 0:02:38]}  c5 {[%clk 0:02:59]} 2. d5 {[%clk 0:02:37]}  e5 {[%clk 0:02:59]} 3. e4 {[%clk 0:02:35]}  d6 {[%clk 0:02:59]} 4. g3 {[%clk 0:02:34]}  Be7 {[%clk 0:02:59]} 5. Bg2 {[%clk 0:02:34]}  Bg5 {[%clk 0:02:59]} 6. Nf3 {[%clk 0:02:33]}  Bxc1 {[%clk 0:02:59]} 7. Qxc1 {[%clk 0:02:34]}  Ne7 {[%clk 0:02:59]} 8. Nbd2 {[%clk 0:02:34]}  O-O {[%clk 0:03:00]} 9. O-O {[%clk 0:02:33]}  h6 {[%clk 0:02:56]} 10. Ne1 {[%clk 0:02:29]}  f5 {[%clk 0:02:54]} 11. f4 {[%clk 0:02:29]}  Nd7 {[%clk 0:02:54]} 12. c4 {[%clk 0:02:28]}  exf4 {[%clk 0:02:52]} 13. Rxf4 {[%clk 0:02:26]}  Ne5 {[%clk 0:02:49]} 14. Qc2 {[%clk 0:02:25]}  N7g6 {[%clk 0:02:45]} 15. Rf1 {[%clk 0:02:24]}  f4 {[%clk 0:02:45]} 16. Nd3 {[%clk 0:02:20]}  fxg3 {[%clk 0:02:42]} 17. Rxf8+ {[%clk 0:02:18]}  Qxf8 {[%clk 0:02:41]} 18. hxg3 {[%clk 0:02:18]}  Bg4 {[%clk 0:02:32]} 19. Rf1 {[%clk 0:02:16]}  Qe7 {[%clk 0:02:32]} 20. Nf4 {[%clk 0:02:08]}  Rf8 {[%clk 0:02:28]} 21. Rf2 {[%clk 0:02:07]}  Nh8 {[%clk 0:02:22]} 22. Nf1 {[%clk 0:02:05]}  g5 {[%clk 0:02:22]} 23. Nd3 {[%clk 0:02:05]}  Nxd3 {[%clk 0:02:18]} 24. Qxd3 {[%clk 0:02:05]}  Rxf2 {[%clk 0:02:17]} 25. Kxf2 {[%clk 0:02:06]}  Qf6+ {[%clk 0:02:14]} 26. Kg1 {[%clk 0:02:02]}  Nf7 {[%clk 0:02:13]} 27. Qb3 {[%clk 0:01:57]}  b6 {[%clk 0:02:11]} 28. Qb5 {[%clk 0:01:57]}  Ne5 {[%clk 0:01:58]} 29. Qe8+ {[%clk 0:01:55]}  Kg7 {[%clk 0:01:59]} 30. b3 {[%clk 0:01:48]}  Bd7 {[%clk 0:01:53]} 31. Qa8 {[%clk 0:01:45]}  Ng4 {[%clk 0:01:53]} 32. Qxa7 {[%clk 0:01:39]}  Ne5 {[%clk 0:01:39]} 33. Qxb6 {[%clk 0:01:38]}  h5 {[%clk 0:01:36]} 34. Qa5 {[%clk 0:01:29]}  h4 {[%clk 0:01:35]} 35. gxh4 {[%clk 0:01:29]}  gxh4 {[%clk 0:01:36]} 36. Qe1 {[%clk 0:01:24]}  Ng4 {[%clk 0:01:19]} 37. Qd2 {[%clk 0:01:11]}  Ne5 {[%clk 0:01:06]} 38. Qf2 {[%clk 0:01:05]}  Qg5 {[%clk 0:01:03]} 39. Qe3 {[%clk 0:01:05]}  Qg6 {[%clk 0:01:01]} 40. Kh1 {[%clk 0:00:57]}  Ng4 {[%clk 0:00:53]} 41. Qf4 {[%clk 0:00:50]}  Qf6 {[%clk 0:00:37]} 42. Qxf6+ {[%clk 0:00:48]}  Kxf6 {[%clk 0:00:38]} 43. Bh3 {[%clk 0:00:47]}  Nf2+ {[%clk 0:00:38]} 44. Kg2 {[%clk 0:00:46]}  Nxh3 {[%clk 0:00:38]} 45. Ne3 {[%clk 0:00:47]}  Ke5 {[%clk 0:00:35]} 46. a4 {[%clk 0:00:43]}  Kxe4 {[%clk 0:00:32]} 47. Nf1 {[%clk 0:00:34]}  Nf4+ {[%clk 0:00:31]} 48. Kh2 {[%clk 0:00:35]}  Nd3 {[%clk 0:00:28]} 49. a5 {[%clk 0:00:35]}  Nb4 {[%clk 0:00:28]} 50. Nd2+ {[%clk 0:00:30]}  Ke3 {[%clk 0:00:24]} 51. Nb1 {[%clk 0:00:30]}  Kd3 {[%clk 0:00:25]} 52. Na3 {[%clk 0:00:30]}  Kc3 {[%clk 0:00:20]} 53. Nb5+ {[%clk 0:00:31]}  Kxb3 {[%clk 0:00:20]} 54. Nxd6 {[%clk 0:00:32]}  Na6 {[%clk 0:00:13]} 55. Kg2 {[%clk 0:00:24]}  Kb4 {[%clk 0:00:13]} 56. Nf7 {[%clk 0:00:18]}  Kxa5 {[%clk 0:00:11]} 57. Ne5 {[%clk 0:00:19]}  Nb8 {[%clk 0:00:09]} 58. d6 {[%clk 0:00:20]}  Kb6 {[%clk 0:00:07]} 59. Nxd7+ {[%clk 0:00:20]}  Nxd7 {[%clk 0:00:07]} 60. Kh3 {[%clk 0:00:21]}  Kc6 {[%clk 0:00:08]} 61. Kxh4 {[%clk 0:00:22]}  Kxd6 {[%clk 0:00:09]} 62. Kg5 {[%clk 0:00:17]}  Nb6 {[%clk 0:00:10]} 0-1


[Site "https://www.chess.com"]

[Event "Titled Tuesday Blitz June 27 Late 2023"]
[White "Pert, Richard G"]
[Black "Kavutskiy, Konstantin"]
[WhiteFideId "404748"]
[BlackFideId "2026384"]
[WhiteElo "2543"]
[BlackElo "2626"]
[Result "1-0"]
[Round "10"]
[TimeControl "180+2"]
[Date "2023.06.27"]
[WhiteClock "0:00:32"]
[BlackClock "0:00:06"]
[Board "47"]

1. d4 {[%clk 0:03:00]}  Nf6 {[%clk 0:02:57]} 2. Nc3 {[%clk 0:03:01]}  d5 {[%clk 0:02:56]} 3. e4 {[%clk 0:03:01]}  dxe4 {[%clk 0:02:53]} 4. f3 {[%clk 0:03:00]}  exf3 {[%clk 0:02:50]} 5. Nxf3 {[%clk 0:03:01]}  g6 {[%clk 0:02:32]} 6. Bg5 {[%clk 0:02:42]}  Bg7 {[%clk 0:02:30]} 7. Qd2 {[%clk 0:02:42]}  h6 {[%clk 0:02:29]} 8. Bf4 {[%clk 0:02:40]}  c5 {[%clk 0:02:24]} 9. d5 {[%clk 0:02:39]}  Bg4 {[%clk 0:02:18]} 10. O-O-O {[%clk 0:02:36]}  Bxf3 {[%clk 0:02:13]} 11. gxf3 {[%clk 0:02:36]}  Nbd7 {[%clk 0:02:11]} 12. Bc4 {[%clk 0:02:05]}  Nh5 {[%clk 0:01:58]} 13. Be3 {[%clk 0:02:05]}  a6 {[%clk 0:01:52]} 14. d6 {[%clk 0:02:04]}  e6 {[%clk 0:01:51]} 15. Rhg1 {[%clk 0:01:53]}  b5 {[%clk 0:01:50]} 16. Bxe6 {[%clk 0:01:50]}  fxe6 {[%clk 0:01:48]} 17. Rxg6 {[%clk 0:01:50]}  Ndf6 {[%clk 0:01:37]} 18. Bxc5 {[%clk 0:01:21]}  Kf7 {[%clk 0:01:36]} 19. Rdg1 {[%clk 0:01:18]}  Rc8 {[%clk 0:01:31]} 20. Bd4 {[%clk 0:01:15]}  Rg8 {[%clk 0:01:21]} 21. Ne4 {[%clk 0:01:10]}  Nxe4 {[%clk 0:00:51]} 22. fxe4 {[%clk 0:01:10]}  Qxd6 {[%clk 0:00:51]} 23. Qf2+ {[%clk 0:01:10]}  Nf4 {[%clk 0:00:27]} 24. Rxg7+ {[%clk 0:01:06]}  Rxg7 {[%clk 0:00:27]} 25. Rxg7+ {[%clk 0:01:05]}  Kf8 {[%clk 0:00:28]} 26. Rh7 {[%clk 0:00:53]}  e5 {[%clk 0:00:25]} 27. Rh8+ {[%clk 0:00:47]}  Kg7 {[%clk 0:00:22]} 28. Rxc8 {[%clk 0:00:48]}  exd4 {[%clk 0:00:20]} 29. Qg3+ {[%clk 0:00:47]}  Kf6 {[%clk 0:00:16]} 30. Qh4+ {[%clk 0:00:46]}  Kg7 {[%clk 0:00:13]} 31. Qd8 {[%clk 0:00:42]}  Ne2+ {[%clk 0:00:07]} 32. Kd1 {[%clk 0:00:41]}  Qxh2 {[%clk 0:00:06]} 33. Qg8+ {[%clk 0:00:35]}  Kf6 {[%clk 0:00:05]} 34. Rf8+ {[%clk 0:00:34]}  Ke5 {[%clk 0:00:06]} 35. Qd5# {[%clk 0:00:32]} 1-0


[Site "https://www.chess.com"]